fUST/lending_fUST_20240511
["ID","MTS","AMOUNT","RATE_DAILY","PERIOD"]
[326796006,1715381459081,-500.0,0.0005589,120]
[326796007,1715381459090,-495.13356004,0.0005589,120]
[326796008,1715381459099,-500.0,0.0005589,120]
[326796009,1715381459109,-500.0,0.0005589,120]
[326796010,1715381459118,-500.0,0.0005589,120]
[326796011,1715381459127,-1078.44,0.0005589,120]
[326796012,1715381459137,-150.0,0.0005589,120]
[326796013,1715381459147,-500.0,0.0005589,120]
[326796014,1715381459158,-500.0,0.0005589,120]
[326796015,1715381459172,-500.0,0.0005589,120]
[326796016,1715381459181,-500.0,0.0005589,120]
[326796017,1715381459191,-1489.95,0.0005589,120]
[326796018,1715381459203,-500.0,0.0005589,120]
[326796019,1715381459212,-500.0,0.0005589,120]
[326796020,1715381459222,-500.0,0.0005589,120]
[326796021,1715381459232,-500.0,0.0005589,120]
[326796022,1715381459243,-1505.02,0.0005589,120]
[326796023,1715381459253,-500.0,0.0005589,2]
[326796024,1715381459263,-500.0,0.0005589,120]
[326796025,1715381459273,-821.7,0.0005589,120]
[326796026,1715381459281,-847.21,0.0005589,120]
[326796027,1715381459291,-500.0,0.0005589,120]
[326796028,1715381459299,-500.0,0.0005589,120]
[326796029,1715381459308,-500.0,0.0005589,120]
[326796030,1715381459318,-500.0,0.0005589,120]
[326796031,1715381459327,-535.56803355,0.0005589,120]
[326796032,1715381459336,-1744.14,0.0005589,2]
[326796033,1715381459346,-1487.03,0.0005589,120]
[326796034,1715381459355,-500.0,0.0005589,120]
[326796035,1715381459365,-245.45010261,0.0005589,120]
[326796036,1715381459374,-500.0,0.0005589,120]
[326796037,1715381459383,-500.0,0.0005589,120]
[326796038,1715381459393,-500.0,0.0005589,120]
[326796039,1715381459402,-500.0,0.0005589,120]
[326796040,1715381459412,-500.0,0.0005589,120]
[326796041,1715381459421,-500.0,0.0005589,120]
[326796042,1715381459431,-500.0,0.0005589,120]
[326796043,1715381459440,-500.0,0.0005589,120]
[326796044,1715381459451,-500.0,0.0005589,120]
[326796045,1715381459461,-621.58,0.0005589,120]
[326796046,1715381459471,-500.0,0.0005589,120]
[326796047,1715381459480,-500.0,0.0005589,120]
[326796048,1715381459489,-2725.02,0.0005589,120]
[326796049,1715381459499,-1524.58,0.0005589,120]
[326796050,1715381459508,-500.0,0.0005589,120]
[326796051,1715381459517,-550.87,0.0005589,120]
[326796052,1715381459527,-500.0,0.0005589,120]
[326796053,1715381459536,-500.0,0.0005589,120]
[326796054,1715381459545,-500.0,0.0005589,120]
[326796055,1715381459554,-500.0,0.0005589,120]
[326796056,1715381459563,-670.43,0.0005589,120]
[326796057,1715381459572,-1135.37,0.0005589,120]
[326796058,1715381459581,-500.0,0.0005589,120]
[326796059,1715381459590,-500.0,0.0005589,120]
[326796060,1715381459599,-515.4,0.0005589,120]
[326796061,1715381459608,-500.0,0.0005589,120]
[326796062,1715381459617,-500.0,0.0005589,120]
[326796063,1715381459627,-700.54,0.0005589,120]
[326796064,1715381459636,-565.96,0.0005589,120]
[326796065,1715381459645,-500.0,0.0005589,120]
[326796066,1715381459654,-500.0,0.0005589,120]
[326796067,1715381459663,-2668.96,0.0005589,120]
[326796068,1715381459672,-500.0,0.0005589,120]
[326796069,1715381459681,-571.02,0.0005589,120]
[326796070,1715381459690,-820.35,0.0005589,120]
[326796071,1715381459704,-500.0,0.0005589,120]
[326796072,1715381459713,-500.0,0.0005589,120]
[326796073,1715381459722,-500.0,0.0005589,120]
[326796074,1715381459731,-500.0,0.0005589,120]
[326796075,1715381459741,-500.0,0.0005589,120]
[326796076,1715381459749,-500.0,0.0005589,120]
[326796077,1715381459758,-500.0,0.0005589,120]
[326796078,1715381459768,-500.0,0.0005589,120]
[326796079,1715381459777,-501.21,0.0005589,120]
[326796080,1715381459786,-500.0,0.0005589,120]
[326796081,1715381459795,-500.0,0.0005589,120]
[326796082,1715381459804,-500.0,0.0005589,120]
[326796083,1715381459813,-598.13,0.0005589,120]
[326796084,1715381459822,-219.99330116,0.0005589,120]
[326796085,1715381459831,-500.0,0.0005589,120]
[326796086,1715381459841,-967.26,0.0005589,120]
[326796087,1715381459850,-819.54,0.0005589,120]
[326796088,1715381459859,-500.0,0.0005589,120]
[326796089,1715381459868,-500.0,0.0005589,120]
[326796090,1715381459877,-500.0,0.0005589,120]
[326796091,1715381459887,-500.0,0.0005589,120]
[326796092,1715381459896,-500.0,0.0005589,120]
[326796093,1715381459905,-500.0,0.0005589,120]
[326796094,1715381459914,-500.0,0.0005589,120]
[326796095,1715381459923,-500.0,0.0005589,120]
[326796096,1715381459933,-500.0,0.0005589,120]
[326796097,1715381459943,-500.0,0.0005589,120]
[326796098,1715381459954,-620.58,0.0005589,120]
[326796099,1715381459963,-500.0,0.0005589,120]
[326796100,1715381459972,-500.0,0.0005589,120]
[326796101,1715381459981,-594.58,0.0005589,120]
[326796102,1715381459990,-500.0,0.0005589,120]
[326796103,1715381459999,-500.0,0.0005589,120]
[326796104,1715381460009,-500.0,0.0005589,120]
[326796105,1715381460018,-819.92,0.0005589,120]
[326796106,1715381460027,-1000.0,0.0005589,120]
[326796107,1715381460036,-500.0,0.0005589,120]
[326796108,1715381460164,-500.0,0.0005589,120]
[326796109,1715381460176,-678.91,0.0005589,120]
[326796110,1715381460185,-500.0,0.0005589,120]
[326796111,1715381460196,-500.0,0.0005589,120]
[326796112,1715381460206,-610.7,0.0005589,120]
[326796113,1715381460215,-648.3,0.0005589,120]
[326796114,1715381460225,-500.0,0.0005589,120]
[326796115,1715381460234,-500.0,0.0005589,120]
[326796116,1715381460246,-500.0,0.0005589,120]
[326796117,1715381460257,-873.9,0.0005589,120]
[326796118,1715381460266,-500.0,0.0005589,120]
[326796119,1715381460276,-500.0,0.0005589,120]
[326796120,1715381460286,-780.28,0.0005589,120]
[326796121,1715381460295,-2756.4,0.0005589,120]
[326796122,1715381460304,-500.0,0.0005589,120]
[326796123,1715381460314,-500.0,0.0005589,120]
[326796124,1715381460324,-500.0,0.0005589,120]
[326796125,1715381460334,-500.0,0.0005589,120]
[326796126,1715381460343,-500.0,0.0005589,120]
[326796127,1715381460353,-500.0,0.0005589,120]
[326796128,1715381460362,-1210.86,0.0005589,120]
[326796129,1715381460372,-500.0,0.0005589,120]
[326796130,1715381460381,-500.0,0.0005589,120]
[326796131,1715381460391,-500.0,0.0005589,120]
[326796132,1715381460401,-1070.89,0.0005589,120]
[326796133,1715381460410,-500.0,0.0005589,120]
[326796134,1715381460420,-500.0,0.0005589,120]
[326796135,1715381460429,-500.0,0.0005589,120]
[326796136,1715381460439,-1070.51,0.0005589,120]
[326796137,1715381460450,-500.0,0.0005589,120]
[326796138,1715381460459,-757.61,0.0005589,120]
[326796139,1715381460469,-4210.69,0.0005589,120]
[326796140,1715381460478,-2993.37,0.0005589,120]
[326796141,1715381460488,-551.15,0.0005589,120]
[326796142,1715381460497,-500.0,0.0005589,120]
[326796143,1715381460507,-398.44360955,0.0005589,120]
[326796144,1715381460516,-500.0,0.0005589,120]
[326796145,1715381460526,-500.0,0.0005589,120]
[326796146,1715381460536,-733.98,0.0005589,120]
[326796147,1715381460545,-500.0,0.0005589,120]
[326796148,1715381460554,-500.0,0.0005589,120]
[326796149,1715381460564,-500.0,0.0005589,120]
[326796150,1715381460573,-500.0,0.0005589,120]
[326796151,1715381460582,-500.0,0.0005589,120]
[326796152,1715381460591,-500.0,0.0005589,120]
[326796153,1715381460601,-4672.91,0.0005589,120]
[326796154,1715381460610,-500.0,0.0005589,120]
[326796155,1715381460619,-500.0,0.0005589,120]
[326796156,1715381460629,-1818.74,0.0005589,120]
[326796157,1715381460638,-500.0,0.0005589,120]
[326796158,1715381460647,-500.0,0.0005589,120]
[326796159,1715381460656,-540.68173762,0.0005589,120]
[326796160,1715381460666,-1000.0,0.0005589,120]
[326796161,1715381460675,-500.0,0.0005589,120]
[326796162,1715381460684,-500.0,0.0005589,120]
[326796163,1715381460693,-500.0,0.0005589,120]
[326796164,1715381460704,-527.33,0.0005589,120]
[326796165,1715381460713,-500.0,0.0005589,120]
[326796166,1715381460722,-500.0,0.0005589,120]
[326796167,1715381460732,-500.0,0.0005589,120]
[326796168,1715381460741,-150.14787567,0.0005589,120]
[326796169,1715381460750,-494.05070102,0.0005589,120]
[326796170,1715381460759,-500.0,0.0005589,120]
[326796171,1715381460768,-500.0,0.0005589,120]
[326796172,1715381460777,-500.0,0.0005589,120]
[326796173,1715381460786,-500.0,0.0005589,120]
[326796174,1715381460795,-500.0,0.0005589,120]
[326796175,1715381460804,-500.0,0.0005589,120]
[326796176,1715381460813,-500.0,0.0005589,120]
[326796177,1715381460823,-500.0,0.0005589,120]
[326796178,1715381460833,-500.0,0.0005589,120]
[326796179,1715381460842,-580.1,0.0005589,120]
[326796180,1715381460851,-500.0,0.0005589,120]
[326796181,1715381460860,-1189.78,0.0005589,120]
[326796182,1715381460870,-500.0,0.0005589,120]
[326796183,1715381460880,-565.76507937,0.0005589,120]
[326796184,1715381460889,-837.42,0.0005589,120]
[326796185,1715381460899,-599.74,0.0005589,120]
[326796186,1715381460908,-500.0,0.0005589,120]
[326796187,1715381460917,-500.0,0.0005589,120]
[326796188,1715381460927,-500.0,0.0005589,120]
[326796189,1715381460936,-1366.53,0.0005589,7]
[326796190,1715381460946,-500.0,0.0005589,120]
[326796191,1715381460956,-500.0,0.0005589,120]
[326796192,1715381460965,-500.0,0.0005589,120]
[326796193,1715381460974,-500.0,0.0005589,120]
[326796194,1715381460983,-500.0,0.0005589,120]
[326796195,1715381460992,-167.25064395,0.0005589,120]
[326796196,1715381461001,-500.0,0.0005589,120]
[326796197,1715381461011,-500.0,0.0005589,120]
[326796198,1715381461021,-549.67,0.0005589,120]
[326796199,1715381461030,-500.0,0.0005589,120]
[326796200,1715381461040,-638.03,0.0005589,120]
[326796201,1715381461049,-500.0,0.0005589,120]
[326796202,1715381461059,-500.0,0.0005589,120]
[326796203,1715381461068,-9331.73,0.0005589,120]
[326796204,1715381461078,-500.0,0.0005589,120]
[326796205,1715381461087,-500.0,0.0005589,120]
[326796206,1715381461097,-2272.92,0.0005589,120]
[326796207,1715381461106,-500.0,0.0005589,120]
[326796208,1715381461116,-623.13,0.0005589,120]
[326796209,1715381461126,-500.0,0.0005589,120]
[326796210,1715381461136,-556.11895935,0.0005589,120]
[326796211,1715381461146,-500.0,0.0005589,120]
[326796212,1715381461155,-500.0,0.0005589,120]
[326796213,1715381461170,-3952.33,0.0005589,120]
[326796214,1715381461180,-1021.55,0.0005589,120]
[326796215,1715381461189,-500.0,0.0005589,120]
[326796216,1715381461199,-728.64,0.0005589,120]
[326796217,1715381461209,-570.68,0.0005589,120]
[326796218,1715381461218,-500.0,0.0005589,120]
[326796219,1715381461227,-7667.9,0.0005589,120]
[326796220,1715381461238,-500.0,0.0005589,120]
[326796221,1715381461248,-3673.96,0.0005589,120]
[326796222,1715381461258,-500.0,0.0005589,120]
[326796223,1715381461267,-500.0,0.0005589,120]
[326796224,1715381461277,-500.0,0.0005589,120]
[326796225,1715381461286,-500.0,0.0005589,120]
[326796226,1715381461295,-500.0,0.0005589,120]
[326796227,1715381461304,-528.77380701,0.0005589,120]
[326796228,1715381461313,-500.0,0.0005589,120]
[326796229,1715381461322,-2110.2,0.0005589,120]
[326796230,1715381461332,-500.0,0.0005589,120]
[326796231,1715381461341,-500.0,0.0005589,120]
[326796232,1715381461350,-500.0,0.0005589,120]
[326796233,1715381461360,-532.85007926,0.0005589,120]
[326796234,1715381461369,-500.0,0.0005589,120]
[326796235,1715381461379,-500.0,0.0005589,120]
[326796236,1715381461388,-500.0,0.0005589,120]
[326796237,1715381461397,-500.0,0.0005589,120]
[326796238,1715381461406,-1410.23,0.0005589,120]
[326796239,1715381461416,-1154.88,0.0005589,120]
[326796240,1715381461425,-8703.16,0.0005589,120]
[326796241,1715381461435,-500.0,0.0005589,120]
[326796242,1715381461445,-536.24,0.0005589,120]
[326796243,1715381461455,-751.25,0.0005589,120]
[326796244,1715381461464,-500.0,0.0005589,120]
[326796245,1715381461473,-500.0,0.0005589,120]
[326796246,1715381461483,-500.0,0.0005589,120]
[326796247,1715381461492,-500.0,0.0005589,120]
[326796248,1715381461501,-500.0,0.0005589,120]
[326796249,1715381461510,-745.85,0.0005589,120]
[326796250,1715381461519,-500.0,0.0005589,120]
[326796251,1715381461528,-1112.7,0.0005589,120]
[326796252,1715381461538,-500.0,0.0005589,120]
[326796253,1715381461547,-3156.04,0.0005589,120]
[326796254,1715381461556,-500.0,0.0005589,120]
[326796255,1715381461565,-500.0,0.0005589,120]
[326796256,1715381461574,-1283.02,0.0005589,120]
[326796257,1715381461583,-1747.91,0.0005589,120]
[326796258,1715381461592,-500.0,0.0005589,120]
[326796259,1715381461601,-500.0,0.0005589,120]
[326796260,1715381461610,-500.0,0.0005589,120]
[326796261,1715381461619,-500.0,0.0005589,120]
[326796262,1715381461629,-924.27,0.0005589,120]
[326796263,1715381461638,-500.0,0.0005589,120]
[326796264,1715381461647,-500.0,0.0005589,120]
[326796265,1715381461657,-500.0,0.0005589,120]
[326796266,1715381461666,-500.0,0.0005589,120]
[326796267,1715381461675,-585.25,0.0005589,120]
[326796268,1715381461685,-500.0,0.0005589,120]
[326796269,1715381461694,-500.0,0.0005589,120]
[326796270,1715381461706,-790.87,0.0005589,120]
[326796271,1715381461715,-500.0,0.0005589,120]
[326796272,1715381461724,-500.0,0.0005589,120]
[326796273,1715381461734,-1269.11,0.0005589,120]
[326796274,1715381461743,-5883.06,0.0005589,120]
[326796275,1715381461753,-1859.96,0.0005589,120]
[326796276,1715381461762,-500.0,0.0005589,120]
[326796277,1715381461772,-500.0,0.0005589,120]
[326796278,1715381461781,-1701.09,0.0005589,120]
[326796279,1715381461790,-632.32,0.0005589,60]
[326796280,1715381461799,-500.0,0.0005589,120]
[326796281,1715381461808,-1691.53,0.0005589,120]
[326796282,1715381461817,-3991.97,0.0005589,120]
[326796283,1715381461826,-592.96,0.0005589,120]
[326796284,1715381461835,-500.0,0.0005589,120]
[326796285,1715381461844,-783.68,0.0005589,120]
[326796286,1715381461854,-500.0,0.0005589,120]
[326796287,1715381461863,-4891.99,0.0005589,21]
[326796288,1715381461873,-2531.38,0.0005589,120]
[326796289,1715381461882,-500.0,0.0005589,120]
[326796290,1715381461891,-500.0,0.0005589,120]
[326796291,1715381461900,-500.0,0.0005589,120]
[326796292,1715381461909,-2025.54,0.0005589,120]
[326796293,1715381461919,-500.0,0.0005589,120]
[326796294,1715381461928,-906.96,0.0005589,120]
[326796295,1715381461938,-47405.75,0.0005589,120]
[326796296,1715381461947,-2056.13,0.0005589,120]
[326796297,1715381461956,-643.51,0.0005589,120]
[326796298,1715381461965,-500.0,0.0005589,120]
[326796299,1715381461974,-500.0,0.0005589,120]
[326796300,1715381461984,-852.8,0.0005589,120]
[326796301,1715381461993,-8527.55,0.0005589,120]
[326796302,1715381462002,-528.48903405,0.0005589,120]
[326796303,1715381462012,-972.54,0.0005589,120]
[326796304,1715381462021,-500.0,0.0005589,120]
[326796305,1715381462030,-500.0,0.0005589,120]
[326796306,1715381462040,-500.0,0.0005589,120]
[326796307,1715381462049,-1320.33,0.0005589,2]
[326796308,1715381462059,-500.82121479,0.0005589,120]
[326796309,1715381462068,-3524.89,0.0005589,2]
[326796310,1715381462078,-546.11,0.0005589,120]
[326796311,1715381462087,-500.0,0.0005589,120]
[326796312,1715381462097,-528.90246235,0.0005589,120]
[326796313,1715381462107,-500.0,0.0005589,120]
[326796314,1715381462116,-500.0,0.0005589,120]
[326796315,1715381462126,-560.85,0.0005589,120]
[326796316,1715381462135,-715.77,0.0005589,120]
[326796317,1715381462144,-500.0,0.0005589,120]
[326796318,1715381462154,-232.70502033,0.0005589,120]
[326796319,1715381462165,-317.00096362,0.0005589,120]
[326796320,1715381462177,-728.84,0.0005589,120]
[326796321,1715381462186,-1524.6,0.0005589,120]
[326796322,1715381462197,-500.0,0.0005589,120]
[326796323,1715381462207,-500.0,0.0005589,120]
[326796324,1715381462216,-2617.66,0.0005589,120]
[326796325,1715381462225,-500.0,0.0005589,120]
[326796326,1715381462235,-500.0,0.0005589,120]
[326796327,1715381462247,-1552.09,0.0005589,120]
[326796328,1715381462256,-1408.03,0.0005589,120]
[326796329,1715381462265,-500.0,0.0005589,120]
[326796330,1715381462275,-709.54,0.0005589,120]
[326796331,1715381462284,-500.0,0.0005589,120]
[326796332,1715381462293,-2955.83,0.0005589,120]
[326796333,1715381462303,-500.0,0.0005589,120]
[326796334,1715381462312,-671.41,0.0005589,120]
[326796335,1715381462431,-500.0,0.0005589,120]
[326796336,1715381462441,-500.0,0.0005589,120]
[326796337,1715381462452,-500.0,0.0005589,120]
[326796338,1715381462461,-679.75,0.0005589,120]
[326796339,1715381462471,-500.0,0.0005589,120]
[326796340,1715381462480,-525.15,0.0005589,120]
[326796341,1715381462490,-305.45792576,0.0005589,120]
[326796342,1715381462499,-150.0,0.0005589,2]
[326796343,1715381462508,-17679.9,0.0005589,120]
[326796344,1715381462518,-500.0,0.0005589,120]
[326796345,1715381462528,-1500.0,0.0005589,120]
[326796346,1715381462537,-500.0,0.0005589,120]
[326796347,1715381462546,-4314.35,0.0005589,120]
[326796348,1715381462556,-500.0,0.0005589,120]
[326796349,1715381462565,-500.0,0.0005589,2]
[326796350,1715381462574,-500.0,0.0005589,120]
[326796351,1715381462584,-500.0,0.0005589,120]
[326796352,1715381462594,-680.13,0.0005589,120]
[326796353,1715381462603,-500.0,0.0005589,120]
[326796354,1715381462613,-500.0,0.0005589,120]
[326796355,1715381462622,-500.0,0.0005589,120]
[326796356,1715381462632,-1273.71,0.0005589,120]
[326796357,1715381462641,-9229.8,0.0005589,120]
[326796358,1715381462650,-990.56,0.0005589,120]
[326796359,1715381462659,-500.0,0.0005589,120]
[326796360,1715381462668,-500.0,0.0005589,120]
[326796361,1715381462678,-500.0,0.0005589,120]
[326796362,1715381462688,-1953.0,0.0005589,120]
[326796363,1715381462700,-621.8,0.0005589,120]
[326796364,1715381462709,-500.0,0.0005589,120]
[326796365,1715381462719,-510.44,0.0005589,2]
[326796366,1715381462728,-1389.39,0.0005589,120]
[326796367,1715381462738,-300.0,0.0005589,7]
[326796368,1715381462747,-3744.03,0.0005589,120]
[326796369,1715381462757,-500.0,0.0005589,120]
[326796370,1715381462766,-500.0,0.0005589,120]
[326796371,1715381462776,-1011.1,0.0005589,120]
[326796372,1715381462785,-500.0,0.0005589,120]
[326796373,1715381462795,-650.98,0.0005589,120]
[326796374,1715381462804,-500.0,0.0005589,120]
[326796375,1715381462813,-5009.77,0.0005589,120]
[326796376,1715381462823,-500.0,0.0005589,120]
[326796377,1715381462832,-566.32,0.0005589,120]
[326796378,1715381462842,-510.05,0.0005589,120]
[326796379,1715381462851,-974.14542008,0.00055893,120]
[326796380,1715381462860,-885.1878,0.000559,2]
[326796381,1715381462870,-152.87482911,0.00055901,120]
[326796382,1715381462879,-150.83408251,0.00055943,2]
[326796383,1715381462889,-150.97189535,0.00055961,120]
[326796384,1715381462898,-974.14542008,0.00056118,120]
[326796385,1715381462907,-165.993042,0.00056256,2]
[326796386,1715381462916,-167.555949,0.00056256,2]
[326796387,1715381462926,-974.14542008,0.00056356,120]
[326796388,1715381462935,-150.0,0.00056449,2]
[326796389,1715381462945,-237.0,0.000566,120]
[326796390,1715381462958,-150.97189535,0.00056688,120]
[326796391,1715381462967,-974.14542008,0.0005673,120]
[326796392,1715381462977,-10698.0,0.00056789,120]
[326796393,1715381462987,-306.5617653,0.00056849,2]
[326796394,1715381462996,-500.0,0.00056986,120]
[326796395,1715381463005,-500.0,0.00056986,120]
[326796396,1715381463015,-500.0,0.00056986,120]
[326796397,1715381463024,-513.15565354,0.00056986,120]
[326796398,1715381463033,-602.21,0.00056986,120]
[326796399,1715381463043,-500.0,0.00056986,120]
[326796400,1715381463052,-302.60233789,0.00056986,2]
[326796401,1715381463061,-500.0,0.00056986,120]
[326796402,1715381463070,-500.0,0.00056986,120]
[326796403,1715381463079,-500.0,0.00056986,120]
[326796404,1715381463088,-500.0,0.00056986,120]
[326796405,1715381463097,-500.0,0.00056986,120]
[326796406,1715381463106,-500.0,0.00056986,120]
[326796407,1715381463115,-501.80079263,0.00056986,120]
[326796408,1715381463125,-427.3596081,0.00056986,120]
[326796409,1715381463134,-500.0,0.00056986,120]
[326796410,1715381463144,-500.0,0.00056986,120]
[326796411,1715381463154,-500.0,0.00056986,120]
[326796412,1715381463168,-1165.04,0.00056986,120]
[326796413,1715381463177,-500.0,0.00056986,120]
[326796414,1715381463186,-549.89,0.00056986,120]
[326796415,1715381463195,-500.0,0.00056986,7]
[326796416,1715381463209,-500.0,0.00056986,120]
[326796417,1715381463218,-638.07042061,0.00056986,120]
[326796418,1715381463228,-500.0,0.00056986,120]
[326796419,1715381463237,-500.0,0.00056986,120]
[326796420,1715381463249,-500.0,0.00056986,120]
[326796421,1715381463258,-500.0,0.00056986,120]
[326796422,1715381463266,-500.0,0.00056986,120]
[326796423,1715381463275,-500.0,0.00056986,120]
[326796424,1715381463284,-2148.21,0.00056986,120]
[326796425,1715381463292,-609.89,0.00056986,120]
[326796426,1715381463301,-543.37396577,0.00056986,120]
[326796427,1715381463310,-500.0,0.00056986,120]
[326796428,1715381463318,-500.0,0.00056986,120]
[326796429,1715381463327,-159.58402254,0.00056986,7]
[326796430,1715381463336,-500.0,0.00056986,120]
[326796431,1715381463345,-500.0,0.00056986,120]
[326796432,1715381463354,-500.0,0.00056986,120]
[326796433,1715381463364,-385.17017313,0.00056986,120]
[326796434,1715381463373,-500.0,0.00056986,120]
[326796435,1715381463382,-500.0,0.00056986,120]
[326796436,1715381463391,-500.0,0.00056986,120]
[326796437,1715381463400,-500.0,0.00056986,120]
[326796438,1715381463410,-500.0,0.00056986,120]
[326796439,1715381463418,-500.0,0.00056986,120]
[326796440,1715381463427,-500.0,0.00056986,120]
[326796441,1715381463436,-500.0,0.00056986,120]
[326796442,1715381463445,-500.0,0.00056986,120]
[326796443,1715381463456,-500.0,0.00056986,120]
[326796444,1715381463466,-500.0,0.00056986,120]
[326796445,1715381463476,-500.0,0.00056986,120]
[326796446,1715381463485,-500.0,0.00056986,120]
[326796447,1715381463495,-574.68,0.00056986,120]
[326796448,1715381463504,-541.11,0.00056986,120]
[326796449,1715381463513,-500.0,0.00056986,120]
[326796450,1715381463524,-500.0,0.00056986,120]
[326796451,1715381463533,-500.0,0.00056986,120]
[326796452,1715381463543,-500.0,0.00056986,120]
[326796453,1715381463552,-500.0,0.00056986,120]
[326796454,1715381463561,-1271.67,0.00056986,7]
[326796455,1715381463571,-500.0,0.00056986,120]
[326796456,1715381463580,-500.0,0.00056986,120]
[326796457,1715381463589,-500.0,0.00056986,120]
[326796458,1715381463598,-500.6764767,0.00056986,120]
[326796459,1715381463607,-500.0,0.00056986,120]
[326796460,1715381463616,-500.43031625,0.00056986,120]
[326796461,1715381463626,-1161.06,0.00056986,120]
[326796462,1715381463635,-500.0,0.00056986,120]
[326796463,1715381463644,-294.2810456,0.00056986,120]
[326796464,1715381463653,-500.0,0.00056986,120]
[326796465,1715381463663,-500.0,0.00056986,120]
[326796466,1715381463672,-151.0,0.00056986,120]
[326796467,1715381463682,-500.0,0.00056986,120]
[326796468,1715381463691,-500.0,0.00056986,120]
[326796469,1715381463702,-500.0,0.00056986,120]
[326796470,1715381463711,-500.0,0.00056986,120]
[326796471,1715381463720,-500.0,0.00056986,120]
[326796472,1715381463730,-500.0,0.00056986,120]
[326796473,1715381463739,-500.0,0.00056986,120]
[326796474,1715381463748,-500.0,0.00056986,120]
[326796475,1715381463758,-664.96,0.00056986,120]
[326796476,1715381463767,-500.0,0.00056986,120]
[326796477,1715381463776,-500.0,0.00056986,120]
[326796478,1715381463785,-500.0,0.00056986,120]
[326796479,1715381463794,-606.82,0.00056986,120]
[326796480,1715381463804,-500.0,0.00056986,120]
[326796481,1715381463813,-500.0,0.00056986,120]
[326796482,1715381463823,-2047.19,0.00056986,120]
[326796483,1715381463832,-500.0,0.00056986,120]
[326796484,1715381463841,-500.0,0.00056986,120]
[326796485,1715381463850,-2115.98,0.00056986,4]
[326796486,1715381463860,-666.88,0.00056986,120]
[326796487,1715381463870,-744.8,0.00056986,120]
[326796488,1715381463879,-500.0,0.00056986,120]
[326796489,1715381463888,-671.73,0.00056986,120]
[326796490,1715381463897,-2379.45,0.00056986,120]
[326796491,1715381463907,-1253.15,0.00056986,120]
[326796492,1715381463916,-591.68,0.00056986,120]
[326796493,1715381463925,-500.0,0.00056986,120]
[326796494,1715381463934,-500.0,0.00056986,120]
[326796495,1715381463943,-576.78,0.00056986,120]
[326796496,1715381463954,-229.77527835,0.00056986,120]
[326796497,1715381463963,-500.0,0.00056986,120]
[326796498,1715381463973,-500.0,0.00056986,120]
[326796499,1715381463982,-534.42,0.00056986,120]
[326796500,1715381463992,-500.0,0.00056986,120]
[326796501,1715381464001,-500.0,0.00056986,120]
[326796502,1715381464010,-500.0,0.00056986,120]
[326796503,1715381464020,-500.0,0.00056986,120]
[326796504,1715381464029,-500.0,0.00056986,120]
[326796505,1715381464039,-1078.44,0.00056986,120]